[Event "Serbian League 2024"]
[Site "Bajina Basta"]
[Date "2024.09.30"]
[Round "4.1"]
[White "Adhiban, B.."]
[Black "Predke, Alexandr"]
[Result "1/2-1/2"]
[ECO "C54"]
[WhiteElo "2537"]
[BlackElo "2671"]
[Annotator "RC"]
[PlyCount "20"]
[EventDate "2024.09.26"]
[EventType "team-tourn"]
[EventCountry "SRB"]
[SourceTitle "playchess.com"]
[Source "ChessBase"]
[SourceQuality "1"]
[TimeControl "40/5400+30:1800+30"]

1. e4 {[%emt 0:01:38]} e5 {[%emt 0:02:47]} 2. Nf3 {[%emt 0:00:08]} Nc6 {[%emt 0:00:06]} 3. Bc4 {[%emt 0:00:08]} Nf6 {[%emt 0:00:07]} 4. d3 {[%emt 0:00:07]} h6 {[%emt 0:00:06]} 5. c3 {[%emt 0:00:40]} Bc5 {[%emt 0:00:08]} 6. a4 {[%emt 0:02:29]} a5 {[%emt 0:01:30]} 7. Be3 {[%emt 0:00:06]} Bxe3 {[%emt 0:06:29]} 8. fxe3 {[%emt 0:00:06]} O-O {[%emt 0:01:32]} 9. O-O {[%emt 0:00:21]} d6 {[%emt 0:01:40]} 10. Nbd2 {[%emt 0:00:27]} Ne7 {[%emt 0:11:05]} 1/2-1/2

[Event "Serbian League 2024"]
[Site "Bajina Basta"]
[Date "2024.09.30"]
[Round "4.2"]
[White "Puranik, Abhimanyu"]
[Black "Can, Emre"]
[Result "1-0"]
[ECO "A20"]
[WhiteElo "2639"]
[BlackElo "2547"]
[Annotator "TA"]
[PlyCount "93"]
[EventDate "2024.09.26"]
[EventType "team-tourn"]
[EventCountry "SRB"]
[SourceTitle "playchess.com"]
[Source "ChessBase"]
[SourceQuality "1"]
[TimeControl "40/5400+30:1800+30"]

{[%evp 13,93,4,26,34,15,29,33,4,25,27,16,22,18,25,15,12,28,24,33,19,54,53,45,54,62,58,71,79,79,77,85,87,83,69,90,83,85,85,80,83,83,87,89,81,97,96,102,98,125,122,125,131,172,168,218,212,228,192,206,206,220,208,244,231,238,223,248,226,248,212,315,316,454,468,462,447,444,453,453,412,430,427]} 1. c4 {[%emt 0:00:16]} e5 {[%emt 0:00:56]} 2. g3 {[%emt 0:00:45]} Nf6 {[%emt 0:00:19]} 3. Bg2 {[%emt 0:00:26]} c6 {[%emt 0:00:19]} 4. d4 {[%emt 0:00:38]} Bb4+ {[%emt 0:00:19]} 5. Bd2 {[%emt 0:00:34]} Bxd2+ {[%emt 0:00:07]} 6. Qxd2 {[%emt 0:00:03]} d6 {[%emt 0:00:13]} 7. Nc3 {[%emt 0:01:37]} O-O {[%emt 0:00:21]} 8. dxe5 {[%emt 0:03:34]} dxe5 {[%emt 0:00:09]} 9. Qxd8 {[%emt 0:00:03]} Rxd8 {[%emt 0:00:07]} 10. Nf3 {[%emt 0:00:01] White is slightly better.} Re8 {[%emt 0:02:40]} 11. b4 {[%emt 0:03:24]} Bf5 {[%emt 0:07:14]} 12. Nd2 {[%emt 0:01:23]} Nbd7 {[%emt 0:07:31]} 13. Nb3 {[%emt 0:02:06]} e4 {[%emt 0:04:55]} 14. O-O {[%emt 0:12:05][%cal Bh1f1,Bf1d1,Bd1d4,Bd4d6][%mdl 32]} Ne5 {[%emt 0:28:56]} 15. c5 {[%emt 0:01:29]} Rad8 {[%emt 0:01:28]} 16. Rfd1 {[%emt 0:06:34]} Kf8 {[%emt 0:01:04]} 17. Na5 {[%emt 0:00:56]} Rb8 {[%emt 0:01:56]} 18. Rd4 {[%emt 0:02:23][%cal Rc3e4]} b6 {[%emt 0:01:49]} 19. Nb3 {[%emt 0:01:55][%cal Rc3e4,Ba5b3,Bb3d4,Bd4c6][%mdl 32]} Ned7 {[%emt 0:09:13][%cal Be5d7,Bd7c5,Bc5b7,Bb7d6][%mdl 32]} 20. Rd6 {[%emt 0:09:30]} bxc5 {[%emt 0:13:05]} 21. bxc5 {[%emt 0:00:10][%cal Ob3d4]} Re5 {[%emt 0:05:45]} 22. Rxc6 {[%emt 0:03:50]} Be6 {[%emt 0:00:04]} 23. Nd4 {[%emt 0:08:05]} Nxc5 {[%emt 0:01:59]} 24. Rc7 {[%emt 0:00:48][%cal Od4c6] [#] Nc6! is the strong threat.} Rb7 {[%emt 0:00:37]} 25. Rxb7 {[%emt 0:04:26]} Nxb7 {[%emt 0:00:02]} 26. Nc6 {[%emt 0:04:45][%csl LRa7,LRe5]} Rc5 {[%emt 0:00:14][%csl LRc3,LRc6]} 27. Nxe4 {[%emt 0:00:04]} (27. Nxa7 $2 Rxc3 28. Nb5 Rc5 $19) 27... Nxe4 {[%emt 0:00:48]} 28. Bxe4 {[%emt 0:00:03]} Nd6 {[%emt 0:00:21] [#]} 29. Rd1 $1 {[%emt 0:02:03]} Ne8 {[%emt 0:01:59]} 30. a3 {[%emt 0:01:14]} a5 {[%emt 0:01:01]} 31. f4 {[%emt 0:03:34][%cal Od1d8] White is more active.} Bb3 {[%emt 0:03:14]} 32. Rd8 {[%emt 0:03:21][%cal Oc6e5]} Ba4 {[%emt 0:01:46]} 33. Ne5 {[%emt 0:00:06]} Ke7 {[%emt 0:00:15]} (33... Bb5 $142 34. Kf2 (34. Bxh7 g6 $14) 34... f6) 34. Ra8 $18 {[%emt 0:02:27]} Nd6 {[%emt 0:00:04]} 35. Ra7+ {[%emt 0:01:14]} Kf8 {[%emt 0:00:54]} 36. Bd3 {[%emt 0:10:05]} f6 {[%emt 0:02:51]} 37. Nf3 {[%emt 0:01:33]} Bb3 {[%emt 0:00:52]} 38. Nd4 {[%emt 0:01:03]} Bf7 {[%emt 0:00:34]} 39. Ra6 {[%emt 0:03:14]} (39. Bxh7 $6 g6) 39... Ne8 {[%emt 0:02:37]} 40. Nb5 {[%emt 0:03:32]} Bg6 {[%emt 0:01:18]} 41. Bxg6 {[%emt 0:32:40]} ({Don't do} 41. Rxa5 $6 Bxd3 42. exd3 Rd5) 41... Rxb5 {[%emt 0:01:38]} (41... hxg6 $142 42. a4 (42. Rxa5 g5 $11) 42... g5) 42. Bxh7 {[%emt 0:00:00] KRB-KRN} f5 {[%emt 0:00:30]} (42... Nc7 $142 43. Rc6 Rb7) 43. Bg6 {[%emt 0:00:00] And now Ra8 would win.} Nf6 {[%emt 0:00:57]} 44. Ra7 {[%emt 0:00:00]} Rb1+ {[%emt 0:02:53]} 45. Kg2 {[%emt 0:00:00]} Rb2 {[%emt 0:00:13]} 46. Bxf5 {[%emt 0:00:00]} Rxe2+ {[%emt 0:00:14]} 47. Kh3 {[%emt 0:00:00] Weighted Error Value: White=0.05 (flawless) /Black=0.17 (very precise) .  Mistake:       	---       	Black=3      Inaccurate:     	---       	Black=2      OK:         	White=24    	Black=10     Best:        	White=4     	Black=2} 1-0

[Event "Serbian League 2024"]
[Site "Bajina Basta"]
[Date "2024.09.30"]
[Round "4.3"]
[White "Bogosavljevic, Boban"]
[Black "Gagunashvili, Merab"]
[Result "0-1"]
[ECO "A11"]
[WhiteElo "2486"]
[BlackElo "2550"]
[Annotator "TA"]
[PlyCount "80"]
[EventDate "2024.09.26"]
[EventType "team-tourn"]
[EventCountry "SRB"]
[SourceTitle "playchess.com"]
[Source "ChessBase"]
[SourceQuality "1"]
[TimeControl "40/5400+30:1800+30"]

{[%evp 10,80,53,46,40,0,0,-8,0,-86,53,43,26,-19,-19,-75,-20,-101,-60,-141,-145,-182,-182,-158,-153,-160,-163,-176,-145,-153,-133,-133,-107,-79,-83,-120,-100,-178,-93,-161,-114,-193,-182,-182,-171,-177,-171,-178,-162,-193,-169,-202,-162,-200,-182,-358,-351,-349,-298,-433,-420,-511,-552,-758,-617,-684,-563,-1061,-1061,-1054,-1053,-1056,-1021]} 1. Nf3 {[%emt 0:04:40]} d5 {[%emt 0:00:04][%cal Bd7d5,Bd5c4,Bc4c3][%mdl 32] EV=15.85. Goes to c3 (dbg))} 2. g3 {[%emt 0:00:05]} c6 {[%emt 0:00:03]} 3. Bg2 {[%emt 0:00:07]} Bg4 {[%emt 0:00:12]} 4. O-O {[%emt 0:01:04]} Nd7 {[%emt 0:00:12]} 5. d3 {[%emt 0:02:14]} Ngf6 {[%emt 0:00:41]} 6. c4 {[%emt 0:00:19]} dxc4 $1 {[%emt 0:01:17][%mdl 4] is kansrijker dan 6...e6. A11: Engelse Opening: 1...c6.} 7. d4 $146 {[%emt 0:06:17] Onnauwkeurig} ({Predecessor:} 7. dxc4 e5 8. Nc3 h6 9. Qc2 Qc7 10. b3 Bc5 11. Bb2 O-O 12. Rad1 Rfe8 13. Nh4 Bf8 14. Nf5 g6 15. Ne3 {0-1 Sindarov,J (2681)-Yakubboev,N (2617) Tashkent Zakovat Gambit blitz 2023 (10)}) 7... e6 {[%emt 0:14:37] OK} 8. a4 {[%emt 0:09:56]} a5 {[%emt 0:05:07] De stelling is in evenwicht.} 9. Na3 {[%emt 0:04:08] Fout (0.9)} (9. Qc2 $11) {Zwart zou moeten spelen} 9... Bxf3 {[%emt 0:06:26] Fout (1.4)} (9... Bxa3 $1 $17 10. Rxa3 O-O) 10. Bxf3 $14 {[%emt 0:05:52]} Nb6 {[%emt 0:00:07]} 11. b3 {[%emt 0:06:14][%mdl 1024] Wit heeft compensatie. Onnauwkeurig} c3 $1 {[%emt 0:02:39] Sterk} 12. Qd3 {[%emt 0:01:04] Fout (0.6)} (12. Qc2 $1 $11) 12... Bb4 $17 {[%emt 0:01:03] Beste (Gemakkelijk)} 13. Nc2 {[%emt 0:01:26] Houdt de partij in balans. Fout (0.8)} (13. Rd1 $1 $11) 13... O-O {[%emt 0:01:13] Onnauwkeurig} {Wit zou moeten proberen} 14. e4 {[%emt 0:12:10] Fout (0.8)} (14. Ba3 $1 $15 Qe7 15. Bxb4 axb4 16. a5) 14... e5 {[%emt 0:14:57]} 15. Rd1 {[%emt 0:09:28]} Nbd7 {[%emt 0:02:03] OK} 16. Bg2 {[%emt 0:08:56] OK} Qe7 {[%emt 0:08:48]} 17. dxe5 {[%emt 0:10:36]} Nxe5 {[%emt 0:00:25]} 18. Qe2 {[%emt 0:00:02] OK} Rfd8 {[%emt 0:03:58] met als doel voor ...Rxd1+.} 19. Be3 {[%emt 0:00:58] Beste} Rxd1+ {[%emt 0:09:15]} 20. Rxd1 {[%emt 0:00:07]} Rd8 {[%emt 0:00:30]} 21. Rxd8+ {[%emt 0:01:42] OK} Qxd8 {[%emt 0:00:55]} 22. Bd4 {[%emt 0:00:02] Onnauwkeurig} Qd6 {[%emt 0:05:35] Zwart is actiever. OK} 23. h3 {[%emt 0:05:22] pakt misschien beter uit. Fout (0.8)} (23. Qe1 $17 Nfd7 24. Bxc3) 23... c5 {[%emt 0:10:20] Fout (0.8)} (23... Nfd7 $19 {...Nc5 is de sterke dreiging.} 24. f4 Bc5) 24. Be3 {[%emt 0:00:44] Fout (0.7)} (24. Bxe5 $17 Qxe5 25. Ne3) {Beter is} 24... Nc6 {[%emt 0:06:03] Fantastisch paardenconcours. Fout (0.5)} (24... Qe6 $19 25. Qb5 Qxb3 26. Qxb7 Qxa4 (26... Qxc2 27. Qc8+) (26... Qb1+ 27. Kh2 $17) 27. Qb8+ Qe8) 25. Kh1 {[%emt 0:05:13] was een poging waard. Fout (0.8)} (25. f4 $17 Qe6 (25... Nd4 26. Qd1 $17) 26. e5) 25... Qe6 {[%emt 0:02:36][%csl LRb3,LRe4]} 26. Qb5 {[%emt 0:02:11] [#] Beste} Qd7 $36 {[%emt 0:01:33][%mdl 2048] Wit staat onder grote druk. OK} ({Speel niet} 26... Qxb3 27. Qxb7 Qe6 (27... Qxa4 $2 {te hebberig.} 28. Qc8+ $18) 28. Qa8+ Qe8 29. Qxe8+ Nxe8 30. f4 $17) 27. Kh2 {[%emt 0:01:00] [#]} Nd4 $1 {[%emt 0:00:46] OK} 28. Bxd4 {[%emt 0:01:36] OK} cxd4 {[%emt 0:01:23]} 29. Qd3 {[%emt 0:00:02] OK} Bc5 {[%emt 0:01:04] OK} 30. e5 {[%emt 0:00:14] OK} Ne8 {[%emt 0:00:15] OK} 31. Be4 {[%emt 0:01:08]} g6 {[%emt 0:00:05]} 32. Ne3 $2 {[%emt 0:01:00] was hoogst noodzakelijk. Fout (1.8)} (32. Qc4 b6 33. Kg2) 32... Qe6 $19 {[%emt 0:01:01] OK} 33. Nc4 {[%emt 0:00:31]} b6 {[%emt 0:00:14] En nu zou ...f5 winnen. OK} 34. f4 {[%emt 0:00:29] kan gunstig zijn. Fout (1.4)} (34. g4) 34... f5 {[%emt 0:00:45] Beste} 35. Bf3 {[%emt 0:00:28]} Nc7 {[%emt 0:00:20] OK. Zwart is duidelijk aan het winnen.} 36. h4 {[%emt 0:00:32] Onnauwkeurig} Kg7 {[%emt 0:00:23]} 37. Be2 {[%emt 0:00:27]} Nd5 {[%emt 0:00:20]} 38. Bd1 {[%emt 0:00:34]} Nb4 {[%emt 0:00:22]} 39. Qf3 {[%emt 0:00:21] OK} d3 {[%emt 0:00:26] Wit moet nu ...c2 voorkomen.} 40. Qb7+ {[%emt 0:00:38]} Qe7 {[%emt 0:00:13] Blunder waarde: Wit=0.60/Zwart=0.20 (precies) .  Fout:        	Wit=9      	Zwart=3      Onnauwkeurig:    	Wit=4      	Zwart=1      OK:         	Wit=7      	Zwart=10     Beste:        	Wit=2      	Zwart=2      Sterk:        	---       	Zwart=1} 0-1

[Event "Serbian League 2024"]
[Site "Bajina Basta"]
[Date "2024.09.30"]
[Round "4.4"]
[White "Draskovic, Luka"]
[Black "Zajic, Milan"]
[Result "0-1"]
[ECO "D11"]
[WhiteElo "2497"]
[BlackElo "2404"]
[Annotator "RC"]
[PlyCount "158"]
[EventDate "2024.09.26"]
[EventType "team-tourn"]
[EventCountry "SRB"]
[SourceTitle "playchess.com"]
[Source "ChessBase"]
[SourceQuality "1"]
[TimeControl "40/5400+30:1800+30"]

1. Nf3 {[%emt 0:00:28]} d5 {[%emt 0:00:07]} 2. g3 {[%emt 0:00:04]} Nf6 {[%emt 0:00:09]} 3. Bg2 {[%emt 0:00:31]} c6 {[%emt 0:00:06]} 4. O-O {[%emt 0:01:23]} Bg4 {[%emt 0:00:17]} 5. d4 {[%emt 0:06:41]} e6 {[%emt 0:00:11]} 6. c4 {[%emt 0:02:30]} Nbd7 {[%emt 0:00:23]} 7. Nc3 {[%emt 0:01:53]} Bd6 {[%emt 0:03:04]} 8. Qb3 {[%emt 0:15:00]} Rb8 {[%emt 0:00:43]} 9. Nd2 {[%emt 0:14:58]} O-O {[%emt 0:04:28]} 10. e4 {[%emt 0:01:14]} dxe4 {[%emt 0:01:41]} 11. Ndxe4 {[%emt 0:00:10]} Bc7 {[%emt 0:02:06]} 12. Be3 {[%emt 0:10:53]} a5 {[%emt 0:10:21]} 13. h3 {[%emt 0:07:07]} Bf5 {[%emt 0:05:02]} 14. Nxf6+ {[%emt 0:06:52]} Nxf6 {[%emt 0:01:38]} 15. Rad1 {[%emt 0:00:47]} Qe7 {[%emt 0:06:10]} 16. a3 {[%emt 0:01:36]} b5 {[%emt 0:29:31]} 17. cxb5 {[%emt 0:01:21]} Nd5 {[%emt 0:02:41]} 18. Nxd5 {[%emt 0:03:46]} exd5 {[%emt 0:00:15]} 19. a4 {[%emt 0:03:00]} Be6 {[%emt 0:23:43]} 20. Rc1 {[%emt 0:04:20]} cxb5 {[%emt 0:01:01]} 21. axb5 {[%emt 0:00:11]} Qd7 {[%emt 0:01:13]} 22. Qd3 {[%emt 0:02:33]} Bd8 {[%emt 0:01:00]} 23. Rc6 {[%emt 0:02:18]} Qb7 {[%emt 0:00:40]} 24. Rc5 {[%emt 0:04:37]} Be7 {[%emt 0:00:30]} 25. Bf4 {[%emt 0:01:34]} Bxc5 {[%emt 0:00:53]} 26. Bxb8 {[%emt 0:00:07]} Rxb8 {[%emt 0:02:39]} 27. dxc5 {[%emt 0:00:06]} Qxb5 {[%emt 0:00:08]} 28. Qxb5 {[%emt 0:00:22]} Rxb5 {[%emt 0:00:03]} 29. Rc1 {[%emt 0:00:31]} Kf8 {[%emt 0:03:02]} 30. Bf1 {[%emt 0:06:18]} Rxb2 {[%emt 0:00:40]} 31. Ra1 {[%emt 0:00:24]} Rc2 {[%emt 0:00:36]} 32. Rxa5 {[%emt 0:00:06]} d4 {[%emt 0:00:21]} 33. Ra4 {[%emt 0:01:20]} Rc1 {[%emt 0:00:27]} 34. Kg2 {[%emt 0:01:39]} Bd5+ {[%emt 0:00:29]} 35. f3 {[%emt 0:00:14]} Rc2+ {[%emt 0:00:27]} 36. Kg1 {[%emt 0:00:01]} Bxf3 {[%emt 0:00:49]} 37. Rxd4 {[%emt 0:00:15]} Rxc5 {[%emt 0:00:16]} 38. Rd2 {[%emt 0:00:21]} Bd5 {[%emt 0:00:53]} 39. Bg2 {[%emt 0:00:15]} Be6 {[%emt 0:00:08]} 40. h4 {[%emt 0:00:21]} Ke7 {[%emt 0:00:17]} 41. Kh2 {[%emt 0:30:24]} f5 {[%emt 0:31:21]} 42. Bf3 {[%emt 0:00:28]} g6 {[%emt 0:00:00]} 43. Kg2 {[%emt 0:00:00]} h6 {[%emt 0:00:00]} 44. Rb2 {[%emt 0:00:00]} g5 {[%emt 0:00:00]} 45. hxg5 {[%emt 0:00:00]} hxg5 {[%emt 0:00:00]} 46. Kf2 {[%emt 0:00:00]} Kf6 {[%emt 0:00:00]} 47. Bg2 {[%emt 0:00:00]} Rc3 {[%emt 0:00:00]} 48. Rd2 {[%emt 0:00:00]} Bc4 {[%emt 0:00:00]} 49. Rb2 {[%emt 0:00:00]} Bd3 {[%emt 0:00:00]} 50. Ra2 {[%emt 0:00:00]} Ke5 {[%emt 0:00:00]} 51. Ra5+ {[%emt 0:00:00]} Kd4 {[%emt 0:00:00]} 52. Rd5+ {[%emt 0:00:00]} Kc4 {[%emt 0:00:00]} 53. Rd8 {[%emt 0:00:00]} Rc2+ {[%emt 0:00:00]} 54. Kg1 {[%emt 0:00:00]} Rb2 {[%emt 0:00:00]} 55. Rg8 {[%emt 0:00:00]} Be4 {[%emt 0:00:00]} 56. Bf1+ {[%emt 0:00:00]} Kd4 {[%emt 0:00:00]} 57. Rxg5 {[%emt 0:00:00]} Ke3 {[%emt 0:00:00]} 58. Rh5 {[%emt 0:00:00]} Rb1 {[%emt 0:02:33]} 59. Rh3 {[%emt 0:00:00]} Bf3 {[%emt 0:01:36]} 60. Rh8 {[%emt 0:03:55]} Bc6 {[%emt 0:00:47]} 61. Rf8 {[%emt 0:00:54]} Be4 {[%emt 0:00:43]} 62. g4 {[%emt 0:01:19]} fxg4 {[%emt 0:02:13]} 63. Re8 {[%emt 0:00:54]} Kf3 {[%emt 0:00:33]} 64. Rf8+ {[%emt 0:01:17]} Kg3 {[%emt 0:00:12]} 65. Rd8 {[%emt 0:01:10]} Rb2 {[%emt 0:01:48]} 66. Re8 {[%emt 0:01:09]} Bf3 {[%emt 0:00:16]} 67. Rh8 {[%emt 0:00:07]} Rb6 {[%emt 0:00:36]} 68. Rh7 {[%emt 0:00:41]} Re6 {[%emt 0:00:14]} 69. Rh8 {[%emt 0:00:24]} Rd6 {[%emt 0:01:57]} 70. Rh7 {[%emt 0:04:41]} Rd1 {[%emt 0:00:36]} 71. Rh3+ {[%emt 0:00:00]} Kf4 {[%emt 0:00:10]} 72. Rh2 {[%emt 0:00:00]} Bd5 {[%emt 0:01:12]} 73. Rf2+ {[%emt 0:00:00]} Kg3 {[%emt 0:00:25]} 74. Rg2+ {[%emt 0:00:00]} Kf4 {[%emt 0:00:17]} 75. Rf2+ {[%emt 0:00:00]} Bf3 {[%emt 0:00:23]} 76. Rb2 {[%emt 0:00:00]} g3 {[%emt 0:00:43]} 77. Rb4+ {[%emt 0:00:00]} Be4 {[%emt 0:00:13]} 78. Ra4 {[%emt 0:00:00]} Rd2 {[%emt 0:00:25]} 79. Ra1 {[%emt 0:00:23]} Rh2 {[%emt 0:00:21]} 0-1

[Event "Serbian League 2024"]
[Site "Bajina Basta"]
[Date "2024.09.30"]
[Round "4.5"]
[White "Roganovic, Milos"]
[Black "Bryakin, Mikhail"]
[Result "1/2-1/2"]
[ECO "C42"]
[WhiteElo "2434"]
[BlackElo "2438"]
[Annotator "TA"]
[PlyCount "69"]
[EventDate "2024.09.26"]
[EventType "team-tourn"]
[EventCountry "SRB"]
[SourceTitle "playchess.com"]
[Source "ChessBase"]
[SourceQuality "1"]
[TimeControl "40/5400+30:1800+30"]

{[%evp 12,69,53,46,44,48,51,6,11,17,14,21,14,4,14,-1,0,-38,-16,-12,0,0,2,1,0,2,4,0,0,0,0,0,0,0,0,0,0,0,0,0,0,0,0,0,0,0,0,0,0,0,0,0,0,0,0,0,0,0,0,0]} 1. e4 {[%emt 0:03:09]} e5 {[%emt 0:00:08]} 2. Nf3 {[%emt 0:01:19]} Nf6 {[%emt 0:00:07]} 3. Nxe5 {[%emt 0:01:04]} Nxe4 {[%emt 0:00:09]} 4. Qe2 {[%emt 0:02:30]} Qe7 {[%emt 0:00:15]} 5. Qxe4 {[%emt 0:10:27]} d6 {[%emt 0:00:09]} 6. d4 {[%emt 0:05:19]} dxe5 {[%emt 0:00:10]} 7. dxe5 {[%emt 0:01:15]} (7. Qxe5 {simplifies} Qxe5+ 8. dxe5 Nc6 9. Bf4) 7... Nc6 {[%emt 0:00:07]} 8. Nc3 {[%emt 0:01:49][%cal Bb1c3,Bc3e4,Be4g5][%mdl 32]} Qxe5 {[%emt 0:00:38]} 9. Bf4 {[%emt 0:12:35]} Qxe4+ {[%emt 0:01:12]} 10. Nxe4 {[%emt 0:00:06]} Bf5 {[%emt 0:02:03]} 11. Bd3 {[%emt 0:02:28]} O-O-O {[%emt 0:02:02] [#] Threatens to win with ...Bxe4.} 12. O-O-O {[%emt 0:04:10]} Bg6 {[%emt 0:05:12] Strongly threatening ...Rd4.} ({Of course not} 12... Nb4 13. Nd6+ Bxd6 14. Bxf5+ Kb8 15. Bxd6 Rxd6 16. Rxd6 cxd6 17. a3 $14) 13. Ng5 {[%emt 0:06:26]} Bd6 {[%emt 0:05:09]} ({But not} 13... Bxd3 $6 14. Nxf7 Re8 15. Rxd3 $16 (15. Nxh8 Bc4 $14)) 14. Bg3 {[%emt 0:08:24]} Bxg3 {[%emt 0:06:11]} 15. hxg3 {[%emt 0:00:13] The position is equal.} h6 {[%emt 0:00:34]} 16. Bxg6 {[%emt 0:00:53]} Rxd1+ {[%emt 0:05:01]} 17. Rxd1 {[%emt 0:00:11]} fxg6 $11 {[%emt 0:00:05][%mdl 4096] Endgame. KRN-KRN} 18. Ne4 {[%emt 0:04:47]} b6 {[%emt 0:01:31]} 19. c3 {[%emt 0:01:20]} Rd8 {[%emt 0:01:08]} 20. Rxd8+ {[%emt 0:00:17]} Kxd8 {[%emt 0:00:19] KN-KN} 21. Kd2 {[%emt 0:00:32]} Kd7 {[%emt 0:00:48]} 22. b3 {[%emt 0:00:31]} Ke6 {[%emt 0:00:38]} 23. Ke3 {[%emt 0:00:33]} g5 {[%emt 0:00:45]} 24. f3 {[%emt 0:04:45]} Ne7 {[%emt 0:01:34]} 25. g4 {[%emt 0:02:12]} Ke5 {[%emt 0:09:33]} 26. c4 {[%emt 0:00:31]} Nc6 {[%emt 0:01:33]} 27. g3 {[%emt 0:02:42][%cal Bg2g3,Bg3f4][%mdl 32]} Nb4 {[%emt 0:02:31]} 28. f4+ {[%emt 0:00:09]} gxf4+ {[%emt 0:00:31]} 29. gxf4+ {[%emt 0:00:02]} Ke6 {[%emt 0:00:07]} 30. a3 {[%emt 0:04:49]} Nc2+ {[%emt 0:10:46]} 31. Kd3 {[%emt 0:00:11]} Ne1+ {[%emt 0:01:48]} 32. Ke2 {[%emt 0:00:31]} Ng2 {[%emt 0:01:13]} 33. Kf3 {[%emt 0:00:10]} Ne1+ {[%emt 0:00:14]} 34. Ke2 {[%emt 0:00:02]} Ng2 {[%emt 0:00:17]} 35. Kf3 {[%emt 0:00:04] Weighted Error Value: White=0.05 (flawless) /Black=0.02 (flawless) .  Inaccurate:     	White=2     	---        OK:         	White=14    	Black=15} 1/2-1/2

[Event "Serbian League 2024"]
[Site "Bajina Basta"]
[Date "2024.09.30"]
[Round "4.6"]
[White "Radovanovic, Mihajlo"]
[Black "Pezelj, Novak"]
[Result "0-1"]
[ECO "B06"]
[WhiteElo "2426"]
[BlackElo "2460"]
[Annotator "TA"]
[PlyCount "60"]
[EventDate "2024.09.26"]
[EventType "team-tourn"]
[EventCountry "SRB"]
[SourceTitle "playchess.com"]
[Source "ChessBase"]
[SourceQuality "1"]
[TimeControl "40/5400+30:1800+30"]

{[%evp 9,60,24,26,18,25,21,37,15,27,9,47,20,86,93,81,84,91,71,115,0,0,0,0,0,0,-33,-35,-50,-45,-36,-48,-39,-42,-50,-19,-20,-2,-300,-309,-311,-320,-460,-474,-463,-468,-1111,-1039,-1006,-997,-1091,-1081,-1048,-1027]} 1. e4 {[%emt 0:00:07]} g6 {[%emt 0:00:16]} 2. d4 {[%emt 0:00:15]} Bg7 {[%emt 0:00:06]} 3. Nc3 {[%emt 0:01:35]} d6 {[%emt 0:02:01]} 4. Be3 {[%emt 0:00:22]} a6 {[%emt 0:02:13]} 5. h4 {[%emt 0:00:20]} h5 {[%emt 0:01:27]} 6. Qd2 {[%emt 0:01:00]} b5 {[%emt 0:02:38]} 7. O-O-O {[%emt 0:01:38]} Bb7 {[%emt 0:03:30]} 8. f3 {[%emt 0:01:32] White is slightly better.} Nd7 {[%emt 0:05:16]} 9. Nh3 {[%emt 0:01:26]} e6 {[%emt 0:05:53][%cal Og8f6]} 10. Ng5 {[%emt 0:00:23]} Ne7 {[%emt 0:05:31]} (10... Ngf6 $11) 11. Kb1 $16 {[%emt 0:05:42]} Nb6 {[%emt 0:03:53]} 12. Qf2 {[%emt 0:02:29]} Qd7 {[%emt 0:10:49]} 13. g3 {[%emt 0:07:43]} d5 {[%emt 0:09:35]} 14. Bc1 {[%emt 0:01:53]} (14. Bh3 $16) 14... f6 {[%emt 0:08:40]} 15. Nh3 {[%emt 0:03:46]} b4 {[%emt 0:01:15]} 16. Ne2 {[%emt 0:01:35][%cal Oe4e5]} dxe4 {[%emt 0:03:05]} 17. fxe4 {[%emt 0:13:34]} Bxe4 {[%emt 0:00:06]} 18. Bg2 {[%emt 0:00:04]} Bxg2 {[%emt 0:00:07]} 19. Qxg2 {[%emt 0:00:03]} Qc6 {[%emt 0:05:06]} 20. Qf2 {[%emt 0:04:33]} O-O-O $36 {[%emt 0:03:46][%mdl 2048] Black has good play.} 21. Nhf4 {[%emt 0:00:45][%cal Od4d5]} a5 {[%emt 0:03:14]} (21... e5 $6 22. Nxg6 Nxg6 23. Qf5+ Kb7 24. Qxg6 $14) 22. d5 {[%emt 0:03:07]} Nbxd5 {[%emt 0:07:17] [#] Hoping for ...f5.} (22... exd5 23. Nd4 Qd7 24. Nde6 $16) 23. Qa7 $2 {[%emt 0:10:03][%mdl 8192] Now White is beyond hope.} (23. Nd4 $11 {and White is okay.} Qb6 24. Nfxe6) 23... e5 $19 {[%emt 0:00:46]} 24. Nxd5 {[%emt 0:01:30]} Rxd5 {[%emt 0:01:49]} 25. c4 {[%emt 0:01:24]} (25. Rxd5 $142 Qxd5 (25... Nxd5 $2 26. Qxa5 $19) 26. Rh2) 25... Rxd1 {[%emt 0:01:48] Black is clearly winning.} 26. Rxd1 {[%emt 0:00:01]} Rd8 {[%emt 0:00:12] [#] ( -> ...Qe4+)} ({Not} 26... Qxc4 27. Qa8#) 27. Bd2 {[%emt 0:01:09]} (27. Re1 $142) 27... Qe4+ {[%emt 0:00:29]} (27... Qxc4 $2 {perishes.} 28. Qa8+ Kd7 29. Bc1+ Ke6 30. Qxd8 Qxe2 31. Rd7 $18) 28. Kc1 {[%emt 0:00:05]} Qxc4+ {[%emt 0:01:20]} 29. Kb1 {[%emt 0:00:22]} Qxe2 {[%emt 0:00:26]} 30. Rc1 {[%emt 0:00:04]} Qe4+ {[%emt 0:00:41] Weighted Error Value: White=0.53/Black=0.16 (very precise) .  Loses game:     	White=1     	---        Mistake:       	White=3     	Black=1      Inaccurate:     	White=2     	Black=3      OK:         	White=8     	Black=9      Best:        	White=1     	Black=2} ({Stronger than} 30... Rxd2 31. Qxc7#) 0-1